bitfinex-derivatives/quotes_SOLF0:USTF0_20260306
["timestamp","ask_amount","ask_price","bid_price","bid_amount"]
[1772808139680,7.18880744,84.514,84.435,28.15]
[1772808140079,7.18880744,84.514,84.436,4.93632913]
[1772808140690,7.18880744,84.514,84.439,5.0179183]
[1772808140886,7.18880744,84.58,84.439,5.0179183]
[1772808141383,10.649,84.516,84.439,5.0179183]
[1772808141588,7.18880744,84.515,84.435,28.15]
[1772808141984,17.84280744,84.479,84.395,4.98337441]
[1772808142185,11.58768516,84.581,84.395,4.98337441]
[1772808142384,7.18880744,84.522,84.395,4.98337441]
[1772808142691,7.18880744,84.522,84.431,7.08756057]
[1772808143086,7.18880744,84.58,84.449,7.08756057]
[1772808143590,7.18880744,84.54,84.449,7.08756057]
[1772808144083,10.648,84.523,84.449,7.08756057]
[1772808144289,7.18880744,84.54,84.449,7.08756057]
[1772808144884,7.18880744,84.54,84.405,21.326]
[1772808144885,10.648,84.526,84.453,7.08756057]
[1772808145081,7.18880744,84.54,84.453,7.08756057]
[1772808145587,7.18880744,84.54,84.38,7.08756057]
[1772808146187,10.65,84.506,84.432,7.08756057]
[1772808146493,7.18880744,84.517,84.432,7.08756057]
[1772808146792,10.651,84.496,84.432,7.08756057]
[1772808146991,7.18880744,84.549,84.432,7.08756057]
[1772808147189,7.18880744,84.549,84.455,7.08756057]
[1772808147996,7.18880744,84.601,84.455,7.08756057]
[1772808148293,10.643,84.562,84.491,7.08756057]
[1772808148589,7.18880744,84.586,84.491,7.08756057]
[1772808148893,10.643,84.565,84.491,7.08756057]
[1772808149491,7.18880744,84.586,84.508,7.08756057]
[1772808149891,7.18880744,84.586,84.487,7.08756057]
[1772808150594,7.18880744,84.586,84.505,10.65]
[1772808150987,285.91263804,84.602,84.514,7.08756057]
[1772808151390,19.17587024,84.608,84.514,7.08756057]
[1772808151588,21.257,84.681,84.543,7.08756057]
[1772808151896,7.22214604,84.63,84.543,7.08756057]
[1772808152192,10.638,84.607,84.544,10.645]
[1772808152393,7.22214604,84.63,84.491,21.305]
[1772808152394,7.22214604,84.63,84.545,6.78209828]
[1772808152587,7.22214604,84.63,84.558,6.78209828]
[1772808152988,189.2,84.724,84.516,6.78209828]
[1772808152989,10.64,84.589,84.516,6.78209828]
[1772808153192,7.22214604,84.599,84.516,6.78209828]
[1772808154401,7.22214604,84.599,84.519,6.78209828]
[1772808154796,7.22214604,84.599,84.457,21.313]
[1772808154797,7.22214604,84.578,84.497,6.78209828]
[1772808155398,10.644,84.555,84.497,6.78209828]
[1772808155997,7.22214604,84.554,84.472,6.78209828]
[1772808156492,10.646,84.539,84.476,10.654]
[1772808156691,11.54366029,84.661,84.426,21.321]
[1772808156692,7.22214604,84.648,84.477,6.78209828]
[1772808157398,7.22214604,84.596,84.489,6.78209828]
[1772808158093,7.22214604,84.596,84.516,6.78209828]
[1772808158799,10.639,84.595,84.527,6.78209828]
[1772808159001,7.22214604,84.596,84.438,6.78209828]
[1772808159900,10.644,84.559,84.49,6.78209828]
[1772808160097,7.22214604,84.572,84.49,6.78209828]
[1772808160396,7.22214604,84.55,84.45,6.78209828]
[1772808161103,7.22214604,84.55,84.473,6.78209828]
[1772808161500,10.647,84.528,84.473,6.78209828]
[1772808161699,7.22214604,84.55,84.473,6.78209828]
[1772808162100,7.22214604,84.571,84.475,6.78209828]
[1772808162706,7.22214604,84.542,84.475,6.78209828]
[1772808163205,7.22214604,84.542,84.448,6.78209828]
[1772808164098,7.22214604,84.542,84.396,21.328]
[1772808164099,10.648,84.524,84.46,6.78209828]
[1772808164295,7.22214604,84.542,84.46,6.78209828]
[1772808164702,10.648,84.525,84.462,6.78209828]
[1772808165103,7.22214604,84.542,84.462,6.78209828]
[1772808165405,10.648,84.526,84.462,6.78209828]
[1772808166598,7.22214604,84.542,84.441,6.78209828]
[1772808167807,10.649,84.515,84.452,6.78209828]
[1772808168304,7.22214604,84.522,84.43,6.78209828]
[1772808168503,10.651,84.498,84.441,6.78209828]
[1772808168705,7.22214604,84.522,84.441,6.78209828]
[1772808169206,7.22214604,84.522,84.42,6.78209828]
[1772808169602,10.652,84.493,84.433,6.78209828]
[1772808169900,7.22214604,84.522,84.433,6.78209828]
[1772808170101,10.652,84.492,84.434,10.659]
[1772808170302,10.652,84.492,84.434,6.78209828]
[1772808170706,10.651,84.5,84.445,10.658]
[1772808170908,7.22214604,84.522,84.445,6.78209828]
[1772808171109,7.22214604,84.522,84.396,6.78209828]
[1772808171506,7.22214604,84.522,84.436,6.78209828]
[1772808172715,10.647,84.528,84.465,6.78209828]
[1772808172916,7.22214604,84.547,84.465,6.78209828]
[1772808173316,10.648,84.527,84.465,6.78209828]
[1772808173919,10.649,84.519,84.465,6.78209828]
[1772808174721,7.22214604,84.547,84.465,6.78209828]
[1772808175412,7.22214604,84.547,84.474,7.23829379]
[1772808175618,7.22214604,84.547,84.439,7.23829379]
[1772808176018,10.652,84.493,84.44,10.658]
[1772808176319,7.18886101,84.512,84.441,7.23829379]
[1772808177317,21.291,84.545,84.441,7.23829379]
[1772808177318,7.18886101,84.543,84.441,7.23829379]
[1772808177624,7.18886101,84.543,84.451,17.89529379]
[1772808177821,7.18886101,84.543,84.452,7.23829379]
[1772808178523,10.647,84.53,84.468,7.23829379]
[1772808178723,7.18886101,84.543,84.468,7.23829379]
[1772808179524,7.18886101,84.543,84.483,17.89129379]
[1772808179722,7.18886101,84.588,84.484,7.23829379]
[1772808180117,28.09472587,84.679,84.484,7.23829379]
[1772808180118,10.646,84.541,84.484,7.23829379]
[1772808180322,7.18886101,84.552,84.484,7.23829379]
[1772808180924,10.646,84.541,84.484,7.23829379]
[1772808181125,7.18886101,84.552,84.484,7.23829379]
[1772808181321,7.18886101,84.585,84.484,7.23829379]
[1772808181722,7.18886101,84.585,84.471,21.65629516]
[1772808181723,10.642,84.572,84.516,10.649]
[1772808181922,10.642,84.572,84.445,28.87443646]
[1772808181923,7.18886101,84.585,84.489,6.72135354]
[1772808182325,6.90382023,84.549,84.444,6.72135354]
[1772808182822,6.90382023,84.573,84.482,6.72135354]
[1772808183125,5.42528703,84.607,84.482,6.72135354]
[1772808183126,6.90382023,84.607,84.482,6.72135354]
[1772808183321,10.64,84.589,84.52,6.72135354]
[1772808183626,6.90382023,84.607,84.52,6.72135354]
[1772808183830,6.90382023,84.607,84.531,6.72135354]
[1772808184025,6.90382023,84.607,84.511,6.72135354]
[1772808184522,10.642,84.573,84.511,17.37035354]
[1772808184719,6.90382023,84.587,84.511,6.72135354]
[1772808184917,6.90382023,84.609,84.511,6.72135354]
[1772808185328,6.90382023,84.629,84.551,6.72135354]
[1772808185923,6.90382023,84.651,84.571,6.72135354]
[1772808186321,6.90382023,84.673,84.581,6.72135354]
[1772808187022,455.96536963,84.728,84.56,9.14427144]
[1772808187023,6.90382023,84.649,84.56,9.14427144]
[1772808187330,6.90382023,84.649,84.561,6.72135354]
[1772808187528,6.90382023,84.649,84.582,10.64]
[1772808187729,6.90382023,84.674,84.583,6.72135354]
[1772808187925,6.90382023,84.674,84.601,6.72135354]
[1772808188433,10.631,84.663,84.601,6.72135354]
[1772808188628,6.90382023,84.695,84.601,6.72135354]
[1772808188830,6.90382023,84.695,84.555,21.288]
[1772808188831,6.90382023,84.669,84.58,15.86562498]
[1772808189025,6.90382023,84.669,84.58,9.14427144]
[1772808189336,10.632,84.647,84.581,6.72135354]
[1772808189528,6.90382023,84.669,84.581,6.72135354]
[1772808189728,6.90382023,84.669,84.531,199.5445722]
[1772808189729,6.90382023,84.642,84.56,6.72135354]
[1772808189928,9.14427144,84.7,84.54,9.14427144]
[1772808189929,6.90382023,84.629,84.54,9.14427144]
[1772808190229,10.638,84.604,84.541,6.72135354]
[1772808190427,6.90382023,84.629,84.541,6.72135354]
[1772808190826,10.635,84.624,84.552,6.72135354]
[1772808191023,6.90382023,84.629,84.552,6.72135354]
[1772808191231,6.90382023,84.659,84.561,6.72135354]
[1772808191425,6.90382023,84.659,84.581,6.72135354]
[1772808191630,6.90382023,84.679,84.601,6.72135354]
[1772808191830,6.90382023,84.679,84.603,6.72135354]
[1772808192428,10.629,84.677,84.603,6.72135354]
[1772808192734,6.90382023,84.679,84.603,6.72135354]
[1772808192937,10.63,84.668,84.607,10.637]
[1772808193138,6.90382023,84.679,84.581,6.72135354]
[1772808193342,9.14427144,84.7,84.601,6.72135354]
[1772808193534,6.90382023,84.701,84.621,6.72135354]
[1772808193734,10.627,84.689,84.621,6.72135354]
[1772808193934,9.14427144,84.72,84.641,6.72135354]
[1772808194137,10.623,84.721,84.656,10.631]
[1772808194332,10.623,84.721,84.641,6.72135354]
[1772808194333,6.90382023,84.723,84.641,6.72135354]
[1772808194532,6.90382023,84.719,84.621,6.72135354]
[1772808194727,10.625,84.706,84.621,6.72135354]
[1772808195031,10.625,84.706,84.64,9.14427144]
[1772808195232,6.90382023,84.749,84.641,6.72135354]
[1772808195434,10.625,84.708,84.641,6.72135354]
[1772808195635,6.90382023,84.723,84.641,6.72135354]
[1772808196529,6.90382023,84.723,84.63,9.14427144]
[1772808196530,10.624,84.711,84.642,6.72135354]
[1772808197135,10.626,84.702,84.642,6.72135354]
[1772808197337,6.90382023,84.709,84.621,6.72135354]
[1772808197537,6.90382023,84.709,84.631,6.72135354]
[1772808197939,6.90382023,84.709,84.63,9.14427144]
[1772808197940,6.90382023,84.75,84.651,6.72135354]
[1772808198343,6.90382023,84.75,84.671,6.72135354]
[1772808198543,9.14427144,84.78,84.69,9.14427144]
[1772808198735,22.54068788,84.79,84.681,6.72135354]
[1772808198736,6.90382023,84.759,84.681,6.72135354]
[1772808198940,6.90382023,84.759,84.661,6.72135354]
[1772808199137,6.90382023,84.759,84.681,6.72135354]
[1772808199337,6.90382023,84.782,84.7,9.14427144]
[1772808199542,10.617,84.767,84.701,6.72135354]
[1772808199740,6.90382023,84.779,84.68,15.86562498]
[1772808200139,6.90382023,84.779,84.63,9.14427144]
[1772808200140,6.90382023,84.748,84.66,9.14427144]
[1772808200641,10.624,84.713,84.658,6.72135354]
[1772808200849,6.90382023,84.739,84.64,9.14427144]
[1772808201141,6.90382023,84.719,84.635,6.72135354]
[1772808201341,6.90382023,84.719,84.64,9.14427144]
[1772808201540,6.90382023,84.719,84.641,6.72135354]
[1772808201943,10.622,84.729,84.664,10.63]
[1772808202248,6.90382023,84.739,84.641,6.72135354]
[1772808202842,21.235,84.767,84.641,6.72135354]
[1772808202843,6.90382023,84.719,84.641,6.72135354]
[1772808203246,6.90382023,84.719,84.621,6.72135354]
[1772808203548,16.04809167,84.74,84.641,6.72135354]
[1772808203749,6.90382023,84.739,84.64,9.14427144]
[1772808204050,6.90382023,84.739,84.641,6.72135354]
[1772808204349,10.623,84.719,84.649,10.632]
[1772808204544,6.90382023,84.739,84.661,6.72135354]
[1772808204750,6.90382023,84.761,84.697,10.626]
[1772808204947,9.14427144,84.84,84.63,9.14427144]
[1772808204948,6.90382023,84.783,84.701,6.72135354]
[1772808205342,10.617,84.767,84.701,6.72135354]
[1772808205548,6.90382023,84.779,84.701,6.72135354]
[1772808205748,10.617,84.769,84.708,10.625]
[1772808205948,6.90382023,84.779,84.701,6.72135354]
[1772808207046,6.90382023,84.759,84.679,6.72135354]
[1772808207645,6.90382023,84.739,84.655,6.72135354]
[1772808208048,6.90382023,84.789,84.71,9.14427144]
[1772808208352,6.90382023,84.789,84.711,6.72135354]
[1772808209546,6.90382023,84.789,84.7,9.14427144]
[1772808210149,10.62,84.748,84.7,9.14427144]
[1772808210354,6.90382023,84.769,84.69,6.72135354]
[1772808210554,6.90382023,84.748,84.68,35.69427144]
[1772808210852,6.90382023,84.748,84.68,26.55]
[1772808211349,10.623,84.726,84.68,26.55]
[1772808211555,6.90382023,84.748,84.68,26.55]
[1772808212157,7.22246962,84.729,84.68,26.55]
[1772808212345,10.625,84.71,84.68,26.55]
[1772808212550,7.22246962,84.729,84.68,26.55]
[1772808213149,7.22246962,84.729,84.68,8.771]
[1772808213555,10.628,84.685,84.645,7.31152799]
[1772808213753,7.22246962,84.709,84.622,7.31152799]
[1772808214057,10.626,84.7,84.636,10.634]
[1772808214364,10.626,84.7,84.637,7.31152799]
[1772808214557,7.22246962,84.729,84.651,7.31152799]
[1772808214751,10.624,84.713,84.651,7.31152799]
[1772808215257,7.22246962,84.729,84.631,7.31152799]
[1772808215461,7.22246962,84.789,84.681,7.31152799]
[1772808215757,7.22246962,84.789,84.63,9.14427144]
[1772808215758,7.22246962,84.789,84.701,7.31152799]
[1772808216058,10.618,84.761,84.701,7.31152799]
[1772808216257,7.22246962,84.779,84.702,21.41]
[1772808216662,10.619,84.756,84.702,21.41]
[1772808216953,7.22246962,84.779,84.703,7.31152799]
[1772808217154,10.617,84.767,84.703,7.31152799]
[1772808217355,7.22246962,84.779,84.703,7.31152799]
[1772808217956,7.22246962,84.779,84.702,21.41]
[1772808218551,10.618,84.766,84.702,21.41]
[1772808218754,7.22246962,84.779,84.702,21.41]
[1772808219154,10.62,84.748,84.702,21.41]
[1772808219459,7.22246962,84.759,84.66,9.14427144]
[1772808219659,7.22246962,84.759,84.661,7.31152799]
[1772808219859,9.14427144,84.76,84.661,7.31152799]
[1772808219860,7.22246962,84.739,84.661,7.31152799]
[1772808220263,7.22246962,84.759,84.661,7.31152799]
[1772808221056,10.62,84.746,84.688,10.627]
[1772808221253,10.62,84.746,84.681,7.31152799]
[1772808221457,7.22246962,84.759,84.66,9.14427144]
[1772808221654,7.22246962,84.759,84.66,16.45579943]
[1772808221860,7.22246962,84.759,84.661,7.31152799]
[1772808222062,10.623,84.721,84.661,7.31152799]
[1772808222259,7.22246962,84.739,84.661,7.31152799]
[1772808222460,165.047,84.829,84.64,7.31152799]
[1772808222461,7.22246962,84.719,84.64,7.31152799]
[1772808223054,10.628,84.68,84.64,7.31152799]
[1772808223261,7.22246962,84.719,84.64,7.31152799]
[1772808223459,7.22246962,84.719,84.642,7.31152799]
[1772808224258,7.22246962,84.719,84.644,7.31152799]
[1772808224465,7.22246962,84.709,84.641,27.2]
[1772808226060,10.629,84.672,84.641,27.2]
[1772808226262,7.22246962,84.709,84.641,27.2]
[1772808226461,21.248,84.716,84.641,27.2]
[1772808226462,7.22246962,84.699,84.641,27.2]
[1772808226661,7.22246962,84.679,84.602,7.31152799]
[1772808226862,7.22246962,84.679,84.58,7.31152799]
[1772808227067,7.22246962,84.659,84.58,7.31152799]
[1772808228466,7.22246962,84.639,84.556,7.31152799]
[1772808229263,7.22246962,84.639,84.557,8.04]
[1772808229871,10.637,84.607,84.557,8.04]
[1772808230170,7.22246962,84.639,84.557,8.04]
[1772808230566,10.636,84.618,84.557,15.35152799]
[1772808231175,10.637,84.609,84.557,15.35152799]
[1772808231364,7.22246962,84.619,84.557,8.04]
[1772808232270,10.64,84.584,84.534,7.31152799]
[1772808232463,7.22246962,84.599,84.534,7.31152799]
[1772808232969,7.22246962,84.599,84.513,7.31152799]
[1772808233372,7.22246962,84.579,84.513,7.31152799]
[1772808233571,7.22246962,84.579,84.491,7.31152799]
[1772808234170,10.641,84.576,84.496,7.31152799]
[1772808234567,7.22246962,84.599,84.496,7.31152799]
[1772808234774,10.643,84.565,84.496,7.31152799]
[1772808234976,7.22246962,84.576,84.496,7.31152799]
[1772808235676,7.26601945,84.562,84.496,7.31152799]
[1772808236279,7.26601945,84.559,84.496,7.31152799]
[1772808237580,17.91001945,84.559,84.496,7.31152799]
[1772808237875,10.644,84.559,84.496,7.31152799]
[1772808238177,7.26601945,84.579,84.499,6.9737203]
[1772808238578,10.64,84.585,84.511,6.9737203]
[1772808238979,7.26601945,84.599,84.511,6.9737203]
[1772808239182,7.26601945,84.599,84.518,6.9737203]
[1772808240073,10.641,84.577,84.518,6.9737203]
[1772808240380,7.26601945,84.619,84.531,6.9737203]
[1772808240571,7.26601945,84.64,84.551,6.9737203]
[1772808241379,7.26601945,84.665,84.59,9.12922412]
[1772808241576,7.14106174,84.653,84.58,9.12922412]
[1772808242070,7.14106174,84.671,84.582,6.5963488]
[1772808242276,9.12922412,84.69,84.601,6.5963488]
[1772808242471,7.14106174,84.697,84.601,6.5963488]
[1772808242780,7.14106174,84.689,84.601,6.5963488]
[1772808242977,7.14106174,84.669,84.58,9.12922412]
[1772808243177,7.14106174,84.669,84.582,6.5963488]
[1772808243376,21.248,84.717,84.538,21.293]
[1772808243377,7.14106174,84.689,84.601,6.5963488]
[1772808243682,7.14106174,84.689,84.6,9.12922412]
[1772808243683,10.628,84.685,84.611,6.5963488]
[1772808243979,7.14106174,84.689,84.621,6.5963488]
[1772808244176,10.625,84.708,84.643,10.633]
[1772808244382,7.14106174,84.712,84.644,6.5963488]
[1772808244583,7.14106174,84.732,84.644,6.5963488]
[1772808244876,10.622,84.728,84.654,10.631]
[1772808245072,7.14106174,84.729,84.644,6.5963488]
[1772808245472,7.14106174,84.729,84.646,6.5963488]
[1772808246181,16.27028586,84.75,84.661,6.5963488]
[1772808246477,7.14106174,84.75,84.661,6.5963488]
[1772808246684,10.618,84.759,84.681,6.5963488]
[1772808246979,7.14106174,84.772,84.701,6.5963488]
[1772808247282,31.669912,84.79,84.7,9.12922412]
[1772808247283,7.14106174,84.787,84.708,6.5963488]
[1772808247477,22.54068788,84.79,84.721,6.5963488]
[1772808247682,22.54068788,84.79,84.724,6.5963488]
[1772808248285,22.54068788,84.79,84.727,6.5963488]
[1772808248780,22.54068788,84.79,84.741,6.5963488]
[1772808248980,22.54068788,84.79,84.655,42.9848969]
[1772808248981,22.54068788,84.79,84.721,6.5963488]
[1772808249784,7.14106174,84.789,84.721,6.5963488]
[1772808250184,7.14106174,84.789,84.697,6.5963488]
[1772808250578,7.14106174,84.789,84.702,6.5963488]
[1772808250782,7.14106174,84.789,84.711,6.5963488]
[1772808251183,7.14106174,84.789,84.69,9.12922412]
[1772808251384,7.14106174,84.769,84.691,6.5963488]
[1772808251588,9.12922412,84.75,84.671,6.5963488]
[1772808251783,10.622,84.732,84.671,6.5963488]
[1772808252287,7.14106174,84.749,84.671,6.5963488]
[1772808252288,10.62,84.745,84.671,6.5963488]
[1772808252485,7.14106174,84.749,84.671,6.5963488]
[1772808253186,7.14106174,84.771,84.69,9.12922412]
[1772808253389,7.14106174,84.771,84.691,6.5963488]
[1772808253689,7.14106174,84.769,84.691,6.5963488]
[1772808253891,7.14106174,84.749,84.671,6.5963488]
[1772808254387,10.621,84.738,84.671,6.5963488]
[1772808254690,7.14106174,84.771,84.691,6.5963488]
[1772808254987,31.669912,84.79,84.711,6.5963488]
[1772808255587,10.616,84.778,84.711,6.5963488]
[1772808255890,7.14106174,84.769,84.69,6.5963488]
[1772808256478,29.68174962,84.79,84.69,6.5963488]
[1772808256680,7.14106174,84.789,84.692,6.5963488]
[1772808257291,31.669912,84.79,84.631,313.17085006]
[1772808257292,7.14106174,84.756,84.671,6.5963488]
[1772808257794,10.619,84.753,84.674,6.5963488]
[1772808257981,7.14106174,84.749,84.674,6.5963488]
[1772808259382,7.14106174,84.771,84.691,6.5963488]
[1772808259791,10.618,84.761,84.693,6.5963488]
[1772808259992,7.14106174,84.771,84.693,6.5963488]
[1772808260392,10.618,84.759,84.695,6.5963488]
[1772808260590,7.14106174,84.771,84.695,6.5963488]
[1772808260990,22.54068788,84.79,84.671,6.5963488]
[1772808260991,7.14106174,84.751,84.671,6.5963488]
[1772808261494,10.623,84.722,84.671,6.5963488]
[1772808262187,10.622,84.733,84.671,6.5963488]
[1772808262498,7.14106174,84.751,84.632,6.5963488]
[1772808262997,7.14106174,84.723,84.638,6.5963488]
[1772808263692,7.14106174,84.723,84.649,6.5963488]
[1772808264586,7.14106174,84.723,84.65,6.5963488]
[1772808264891,7.14106174,84.723,84.581,6.5963488]
[1772808265293,7.14106174,84.723,84.632,6.5963488]
[1772808266193,10.626,84.696,84.632,6.5963488]
[1772808266589,7.14106174,84.723,84.632,6.5963488]
[1772808266590,10.625,84.707,84.642,10.633]
[1772808266897,7.14106174,84.723,84.643,6.5963488]
[1772808267094,10.626,84.697,84.643,6.5963488]
[1772808267689,10.626,84.699,84.643,6.5963488]
[1772808267888,7.14106174,84.723,84.584,6.5963488]
[1772808268293,7.14106174,84.686,84.596,6.5963488]
[1772808268890,7.14106174,84.686,84.607,6.5963488]
[1772808269299,10.628,84.684,84.62,6.5963488]
[1772808269794,7.14106174,84.72,84.62,6.5963488]
[1772808269995,7.14106174,84.72,84.639,6.5963488]
[1772808270394,176.0,84.789,84.572,210.4497532]
[1772808270395,10.623,84.725,84.657,6.5963488]
[1772808271004,10.621,84.737,84.668,6.5963488]
[1772808271397,10.624,84.717,84.668,6.5963488]
[1772808271803,7.14106174,84.741,84.668,6.5963488]
[1772808272002,7.2258957,84.747,84.668,6.5963488]
[1772808273097,7.2258957,84.747,84.609,7.11361834]
[1772808273299,7.2258957,84.747,84.65,7.11361834]
[1772808274302,10.625,84.71,84.65,7.11361834]
[1772808275305,10.626,84.701,84.65,7.11361834]
[1772808276600,10.625,84.71,84.65,17.74561834]
[1772808276800,10.625,84.71,84.651,7.11361834]
[1772808277405,10.623,84.722,84.654,7.11361834]
[1772808277697,7.2258957,84.727,84.654,7.11361834]
[1772808277902,7.2258957,84.725,84.654,7.11361834]
[1772808278100,7.2258957,84.725,84.622,7.11361834]
[1772808278804,10.624,84.717,84.658,10.631]
[1772808279105,7.2258957,84.725,84.653,7.11361834]
[1772808279806,7.2258957,84.725,84.634,7.11361834]
[1772808280302,7.2258957,84.7,84.634,7.11361834]
[1772808280610,2.0,84.724,84.634,7.11361834]
[1772808280904,7.2258957,84.723,84.634,7.11361834]
[1772808281896,7.2258957,84.723,84.643,7.11361834]
[1772808282098,7.2258957,84.721,84.643,7.11361834]
[1772808282299,7.2258957,84.721,84.592,7.11361834]
[1772808282503,7.2258957,84.719,84.592,7.11361834]
[1772808282904,7.2258957,84.719,84.539,36.14393228]
[1772808282905,7.2258957,84.719,84.629,7.11361834]
[1772808284505,10.625,84.706,84.643,10.633]
[1772808284712,10.625,84.706,84.629,7.11361834]
[1772808285316,7.2258957,84.719,84.651,7.11361834]
[1772808286510,7.2258957,84.719,84.659,7.11361834]
[1772808286711,7.2258957,84.761,84.659,7.11361834]
[1772808287112,13.94264374,84.789,84.659,7.11361834]
[1772808287113,7.2258957,84.729,84.659,7.11361834]
[1772808287808,7.2258957,84.729,84.629,21.5697532]
[1772808288016,7.2258957,84.729,84.64,7.11361834]
[1772808288707,7.2258957,84.727,84.64,7.11361834]
[1772808289107,10.625,84.703,84.649,10.632]
[1772808289418,7.2258957,84.727,84.64,7.11361834]
[1772808290310,7.2258957,84.724,84.64,7.11361834]
[1772808290711,10.627,84.692,84.64,7.11361834]
[1772808290907,7.2258957,84.724,84.64,7.11361834]
[1772808292316,7.2258957,84.706,84.621,7.11361834]
[1772808292615,7.2258957,84.704,84.621,7.11361834]
[1772808292816,10.628,84.68,84.631,10.634]
[1772808293015,7.2258957,84.704,84.621,7.11361834]
[1772808293420,7.2258957,84.685,84.602,7.11361834]
[1772808293616,10.5320645,84.747,84.602,7.11361834]
[1772808293817,7.2258957,84.704,84.633,7.11361834]
[1772808294417,10.628,84.683,84.633,7.11361834]
[1772808295418,10.629,84.676,84.633,7.11361834]
[1772808295624,5.48248441,84.703,84.611,6.88779677]
[1772808295824,7.21259102,84.701,84.611,6.88779677]
[1772808296021,10.628,84.684,84.629,10.635]
[1772808296726,10.629,84.677,84.622,6.88779677]
[1772808297123,7.21259102,84.699,84.622,6.88779677]
[1772808297417,10.628,84.684,84.632,6.88779677]
[1772808297621,7.21259102,84.699,84.632,6.88779677]
[1772808297825,7.21259102,84.717,84.632,6.88779677]
[1772808298221,10.625,84.707,84.656,6.88779677]
[1772808300217,7.21259102,84.717,84.64,21.5697532]
[1772808300420,7.21259102,84.715,84.638,6.88779677]
[1772808300624,7.21259102,84.713,84.65,10.632]
[1772808300816,10.626,84.696,84.65,6.88779677]
[1772808301020,7.21259102,84.713,84.65,6.88779677]
[1772808301220,7.21259102,84.733,84.66,6.88779677]
[1772808301422,10.5320645,84.774,84.572,239.41352623]
[1772808301423,7.21259102,84.731,84.627,21.5697532]
[1772808301716,14.04275267,84.775,84.622,6.88779677]
[1772808301717,7.12532863,84.729,84.626,6.92960363]
[1772808301922,14.04275267,84.768,84.626,6.92960363]
[1772808301923,7.12532863,84.724,84.626,6.92960363]
[1772808302119,7.12532863,84.722,84.626,6.92960363]
[1772808302314,7.12532863,84.675,84.615,21.5697532]
[1772808302516,7.12532863,84.675,84.612,21.5697532]
[1772808302718,7.12532863,84.675,84.613,6.92960363]
[1772808302925,7.12532863,84.704,84.619,6.92960363]
[1772808303127,7.12532863,84.704,84.627,6.92960363]
[1772808303326,7.12532863,84.704,84.636,10.634]
[1772808303626,7.12532863,84.704,84.627,6.92960363]
[1772808303825,7.12532863,84.704,84.628,6.92960363]
[1772808304120,10.627,84.693,84.628,6.92960363]
[1772808304326,7.12532863,84.704,84.628,6.92960363]
[1772808304924,7.12532863,84.686,84.599,21.5697532]
[1772808305120,7.12532863,84.684,84.598,21.5697532]
[1772808305319,10.633,84.645,84.601,6.92960363]
[1772808305525,7.12532863,84.658,84.601,6.92960363]
[1772808305719,7.12532863,84.709,84.601,6.92960363]
[1772808305923,10.63,84.665,84.606,6.92960363]
[1772808306220,7.12532863,84.682,84.583,6.92960363]
[1772808306419,10.63,84.664,84.609,6.92960363]
[1772808306619,7.12532863,84.701,84.613,21.5697532]
[1772808306824,7.12532863,84.701,84.632,21.5697532]
[1772808307027,7.12532863,84.72,84.637,6.92960363]
[1772808307225,7.12532863,84.72,84.663,10.63]
[1772808307428,7.12532863,84.74,84.663,6.92960363]
[1772808307629,10.623,84.721,84.664,6.92960363]
[1772808308128,5.51640987,84.739,84.664,6.92960363]
[1772808308325,7.12532863,84.74,84.664,6.92960363]
[1772808308722,7.12532863,84.74,84.665,6.92960363]
[1772808308928,7.12532863,84.74,84.667,6.92960363]
[1772808309932,10.623,84.724,84.667,6.92960363]
[1772808310228,7.12532863,84.74,84.667,6.92960363]
[1772808310426,10.623,84.725,84.667,6.92960363]
[1772808310630,7.12532863,84.74,84.634,28.77538567]
[1772808310631,7.12532863,84.738,84.64,9.11761855]
[1772808310832,10.626,84.701,84.643,10.633]
[1772808311021,7.12532863,84.709,84.64,9.11761855]
[1772808311224,7.12532863,84.709,84.629,6.92960363]
[1772808311624,10.628,84.686,84.629,6.92960363]
[1772808312225,7.12532863,84.709,84.642,6.92960363]
[1772808312427,7.12532863,84.738,84.661,6.92960363]
[1772808312630,10.624,84.715,84.662,6.92960363]
[1772808312829,7.12532863,84.719,84.662,6.92960363]
[1772808313040,7.12532863,84.752,84.662,6.92960363]
[1772808313235,7.12532863,84.724,84.663,6.92960363]
[1772808313442,7.12532863,84.724,84.643,6.92960363]
[1772808313640,7.12532863,84.722,84.661,6.92960363]
[1772808313838,7.12532863,84.742,84.68,9.11761855]
[1772808314338,7.12532863,84.742,84.67,9.11761855]
[1772808314540,7.12532863,84.758,84.69,9.11761855]
[1772808314741,7.12532863,84.758,84.691,6.92960363]